bitfinex/quotes_BTCUSD_20230117
["timestamp","ask_amount","ask_price","bid_price","bid_amount"]
[1673966289820,1.93771608,21142.0,21134.0,0.09568557]
[1673966290072,1.93772008,21141.0,21134.0,0.0005]
[1673966290344,0.1,21136.0,21134.0,0.0005]
[1673966290583,0.19072595,21135.0,21134.0,0.0005]
[1673966291359,0.51270395,21135.0,21134.0,0.0005]
[1673966291628,0.321978,21135.0,21134.0,0.0005]
[1673966291879,1.26860343,21135.0,21134.0,0.0005]
[1673966292154,1.26860343,21135.0,21125.0,0.0015719]
[1673966292155,8.34042412,21135.0,21125.0,0.0015719]
[1673966292467,8.34042412,21135.0,21123.0,0.02051146]
[1673966292468,0.83663,21131.0,21123.0,0.02051146]
[1673966292732,0.34865535,21128.0,21123.0,0.02051146]
[1673966293021,0.34865535,21128.0,21114.0,0.95027846]
[1673966293022,6.39247038,21127.0,21114.0,0.95027846]
[1673966293287,0.92643598,21126.0,21114.0,0.52202066]
[1673966293561,5.40643843,21126.0,21125.0,0.001]
[1673966293831,5.40643843,21126.0,21115.0,0.33987658]
[1673966293832,4.781791,21126.0,21115.0,0.33987658]
[1673966294096,0.473408,21124.0,21115.0,0.15]
[1673966294386,0.473408,21124.0,21109.0,0.14281502]
[1673966294387,6.19332886,21123.0,21109.0,0.14281502]
[1673966294646,0.473511,21119.0,21109.0,0.0018321]
[1673966294912,5.39027073,21118.0,21109.0,0.0018321]
[1673966295264,4.61725895,21117.0,21114.0,0.02060196]
[1673966295517,0.47262074,21120.0,21114.0,0.02060196]
[1673966295774,4.449813,21120.0,21114.0,0.49420096]
[1673966296044,4.534813,21119.0,21115.0,1.07711366]
[1673966296333,0.077,21117.0,21116.0,0.60713535]
[1673966296611,0.077,21117.0,21116.0,0.654831]
[1673966296869,0.47050809,21129.0,21116.0,1.13409161]
[1673966296870,0.61970809,21129.0,21116.0,1.13409161]
[1673966297135,0.071,21120.0,21117.0,0.12993366]
[1673966297392,0.071,21120.0,21118.0,0.181218]
[1673966297645,0.071,21120.0,21117.0,1.247075]
[1673966297908,0.071,21120.0,21119.0,0.09586]
[1673966298182,0.14953,21125.0,21115.0,0.622784]
[1673966298183,0.14953,21124.0,21116.0,0.14953]
[1673966298428,0.19072595,21123.0,21117.0,0.12993366]
[1673966298689,0.14953,21124.0,21117.0,0.12993366]
[1673966298690,0.34072595,21122.0,21117.0,0.12993366]
[1673966298953,0.071,21120.0,21117.0,0.002]
[1673966299211,0.071,21120.0,21114.0,0.02060196]
[1673966299212,0.321978,21119.0,21114.0,0.02060196]
[1673966299480,0.51270395,21118.0,21116.0,0.002]
[1673966299734,0.84349256,21120.0,21116.0,0.002]
[1673966299735,0.471978,21117.0,21116.0,0.002]
[1673966300001,0.321978,21117.0,21116.0,0.002]
[1673966300264,0.321978,21117.0,21114.0,0.02060196]
[1673966300549,0.471978,21116.0,21114.0,0.02060196]
[1673966300805,0.321978,21115.0,21114.0,0.02060196]
[1673966301064,0.795574,21115.0,21110.0,0.0005]
[1673966301325,0.66270395,21114.0,21101.0,0.1494066]
[1673966301787,0.47050268,21113.0,21102.0,0.473884]
[1673966301788,0.66122863,21113.0,21102.0,0.473884]
[1673966302040,0.66122863,21113.0,21103.0,0.06232906]
[1673966302041,0.473701,21111.0,21103.0,0.06232906]
[1673966302325,1.46040832,21110.0,21101.0,0.13000026]
[1673966302595,0.473701,21111.0,21102.0,0.12993366]
[1673966302596,1.45651093,21109.0,21102.0,0.12993366]
[1673966302966,0.19072595,21108.0,21102.0,0.002]
[1673966303223,0.15,21109.0,21101.0,6.66e-05]
[1673966303224,0.51270395,21107.0,21101.0,6.66e-05]
[1673966303479,0.321978,21106.0,21101.0,6.66e-05]
[1673966303726,1.04117604,21105.0,21101.0,6.66e-05]
[1673966303974,0.321978,21104.0,21099.0,0.07726809]
[1673966304263,0.34072595,21105.0,21099.0,0.68114075]
[1673966304264,0.15,21105.0,21099.0,0.68114075]
[1673966304519,0.15,21103.0,21100.0,0.18143]
[1673966304758,0.15,21105.0,21100.0,0.13365447]
[1673966304759,0.108,21105.0,21100.0,0.13365447]
[1673966305008,0.47050268,21110.0,21101.0,0.31135466]
[1673966305256,0.004,21105.0,21102.0,0.12993366]
[1673966305502,0.004,21105.0,21099.0,0.07726809]
[1673966305503,0.321978,21104.0,21099.0,0.07726809]
[1673966305741,0.4738,21106.0,21099.0,0.07726809]
[1673966305742,0.321978,21103.0,21099.0,0.07726809]
[1673966305985,0.321978,21102.0,21099.0,0.07726809]
[1673966306236,0.321978,21101.0,21099.0,0.07726809]
[1673966306485,0.51270395,21100.0,21099.0,0.07726809]
[1673966306722,0.14169236,21098.0,21093.0,0.02196006]
[1673966306961,0.321978,21097.0,21093.0,0.02196006]
[1673966307251,0.321978,21096.0,21093.0,0.01696006]
[1673966307488,0.51270395,21095.0,21093.0,0.01696006]
[1673966307754,0.321978,21094.0,21093.0,0.01696006]
[1673966308069,0.19072595,21095.0,21093.0,0.01696006]
[1673966308253,0.15,21095.0,21093.0,0.01696006]
[1673966308499,0.15,21095.0,21094.0,0.65870569]
[1673966308744,0.46640318,21104.0,21094.0,1.99067469]
[1673966309008,0.15,21107.0,21098.0,1.07720169]
[1673966309249,0.15,21107.0,21100.0,1.421793]
[1673966309493,0.15,21110.0,21103.0,0.47720169]
[1673966309752,0.1447,21117.0,21105.0,1.421457]
[1673966310013,2.14515,21120.0,21106.0,1.08849935]
[1673966310267,0.47720169,21118.0,21107.0,0.12993366]
[1673966310544,0.95080469,21115.0,21108.0,0.12993366]
[1673966310786,0.321978,21114.0,21103.0,0.47386]
[1673966311042,0.78045549,21113.0,21105.0,0.473818]
[1673966311290,0.78045549,21113.0,21095.0,0.15]
[1673966311291,0.23689,21107.0,21095.0,0.15]
[1673966311542,1.07720169,21110.0,21094.0,0.12796734]
[1673966311543,0.23693,21104.0,21094.0,0.12796734]
[1673966311833,0.23693,21104.0,21093.0,0.01696006]
[1673966311834,0.473911,21101.0,21093.0,0.01696006]
[1673966312043,0.075,21096.0,21093.0,0.01696006]
[1673966312287,0.075,21096.0,21092.0,0.15]
[1673966312288,0.47720169,21094.0,21086.0,0.00184688]
[1673966312539,0.51270395,21095.0,21070.0,0.04747785]
[1673966312540,1.07720169,21087.0,21070.0,0.04747785]
[1673966312795,1.07720169,21087.0,21069.0,0.0020436]
[1673966312796,0.19072595,21076.0,21069.0,0.0020436]
[1673966313091,0.51050395,21075.0,21069.0,0.0020436]
[1673966313332,1.47431,21084.0,21069.0,0.0020436]
[1673966313333,0.51285095,21074.0,21069.0,0.0020436]
[1673966313563,0.66792764,21073.0,21066.0,0.6998302]
[1673966313818,0.14272,21084.0,21066.0,0.6998302]
[1673966313819,0.14179,21086.0,21080.0,0.02477736]
[1673966314076,0.29179,21093.0,21081.0,0.948699]
[1673966314390,0.29179,21093.0,21082.0,0.36302664]
[1673966314391,0.12738693,21093.0,21082.0,0.36302664]
[1673966314575,0.12738693,21093.0,21085.0,2.022797]
[1673966314576,0.15,21092.0,21085.0,2.022797]
[1673966314818,0.15,21094.0,21085.0,2.022797]
[1673966314819,0.15,21094.0,21087.0,0.47720169]
[1673966315069,0.075,21096.0,21089.0,2.73682569]
[1673966315316,0.023689,21106.0,21094.0,0.47720169]
[1673966315575,0.14166,21108.0,21096.0,0.60395466]
[1673966315823,0.14166,21108.0,21097.0,0.60713535]
[1673966316066,0.74119,21114.0,21097.0,0.60713535]
[1673966316067,2.6,21120.0,21101.0,0.47720169]
[1673966316323,2.6,21120.0,21108.0,0.12993366]
[1673966316324,2.83675,21120.0,21108.0,0.12993366]
[1673966316575,2.0,21120.0,21109.0,0.473711]
[1673966316816,2.0,21120.0,21110.0,0.47720169]
[1673966317057,2.0,21120.0,21106.0,0.44035]
[1673966317058,1.7080669,21119.0,21104.0,0.11442435]
[1673966317302,1.7080669,21119.0,21100.0,0.14119]
[1673966317303,0.6,21116.0,21109.0,0.28963982]
[1673966317547,0.6,21116.0,21094.0,0.42299]
[1673966317548,0.45689887,21108.0,21094.0,0.42299]
[1673966317828,0.45689887,21108.0,21095.0,0.1037422]
[1673966317829,0.19072595,21105.0,21095.0,0.1037422]
[1673966318137,0.6,21102.0,21090.0,0.15]
[1673966318323,1.19061819,21104.0,21098.0,0.15]
[1673966318324,0.76296224,21101.0,21098.0,0.15]
[1673966318585,0.18738905,21104.0,21098.0,0.165]
[1673966318831,0.44083324,21107.0,21098.0,0.64220169]
[1673966319077,0.19072595,21106.0,21098.0,0.165]
[1673966319370,0.19072595,21105.0,21098.0,0.62720169]
[1673966319577,0.45689887,21108.0,21104.0,0.003]
[1673966319819,0.45689887,21108.0,21105.0,0.47720169]
[1673966320065,0.45689887,21108.0,21104.0,0.710737]
[1673966320066,0.45689887,21108.0,21106.0,1.04251369]
[1673966320310,0.45689887,21108.0,21107.0,0.473776]
[1673966320567,0.45689887,21108.0,21107.0,0.265296]
[1673966320805,0.45689887,21108.0,21107.0,0.74249769]
[1673966321071,0.45689887,21108.0,21107.0,0.0085]
[1673966321327,0.45689887,21108.0,21107.0,0.90265669]
[1673966321565,0.45689887,21108.0,21107.0,0.265295]
[1673966321827,0.64762482,21108.0,21100.0,0.473914]
[1673966322105,0.51285495,21107.0,21099.0,0.15]
[1673966322332,0.19072595,21106.0,21099.0,0.15]
[1673966322574,0.6,21102.0,21099.0,0.15]
[1673966322822,0.99005664,21101.0,21098.0,0.093]
[1673966323062,0.6,21099.0,21090.0,0.02219531]
[1673966323322,0.94988647,21098.0,21090.0,0.02219531]
[1673966323572,0.19072595,21097.0,21090.0,0.02219531]
[1673966323824,0.19072595,21096.0,21090.0,0.02219531]
[1673966324067,0.19072595,21095.0,21090.0,0.02219531]
[1673966324324,0.13757,21098.0,21090.0,0.02219531]
[1673966324325,0.19072595,21094.0,21090.0,0.02219531]
[1673966324577,0.19072595,21093.0,21090.0,0.02219531]
[1673966324817,0.19072595,21092.0,21090.0,0.02219531]
[1673966325065,1.11285495,21091.0,21090.0,0.02219531]
[1673966325308,0.322129,21091.0,21090.0,0.02219531]
[1673966325549,0.13713,21094.0,21090.0,0.02219531]
[1673966325796,0.611523,21100.0,21085.0,0.15]
[1673966325797,0.13757,21100.0,21088.0,0.474194]
[1673966326047,0.19072595,21099.0,21089.0,0.0474194]
[1673966326311,0.19072595,21098.0,21089.0,0.0474194]
[1673966326556,0.13757,21100.0,21084.0,0.15]
[1673966326557,1.14193664,21097.0,21084.0,0.15]
[1673966326813,0.51285495,21096.0,21081.0,0.61044]
[1673966327104,0.15,21091.0,21085.0,0.474258]
[1673966327345,0.19072595,21090.0,21086.0,0.265609]
[1673966327586,0.19072595,21090.0,21087.0,0.474221]
[1673966327827,0.19072595,21090.0,21089.0,0.15]
[1673966328130,0.15,21091.0,21087.0,0.474221]
[1673966328369,0.15,21091.0,21088.0,0.74278769]
[1673966328603,0.15,21101.0,21090.0,0.47720169]
[1673966328855,0.15,21101.0,21091.0,0.274046]
[1673966328856,0.19072595,21100.0,21091.0,0.274046]
[1673966329090,0.19072595,21100.0,21089.0,0.49652087]
[1673966329091,0.19072595,21099.0,21089.0,0.73359687]
[1673966329346,0.15,21101.0,21090.0,0.08713269]
[1673966329347,0.15,21094.0,21090.0,0.08713269]
[1673966329600,0.15,21094.0,21091.0,0.739663]
[1673966329842,0.13609,21107.0,21092.0,0.77720169]
[1673966330086,0.19072595,21106.0,21096.0,0.948026]
[1673966330342,0.45689887,21108.0,21097.0,1.04264269]
[1673966330343,0.15,21100.0,21097.0,1.04264269]
[1673966330594,0.43352792,21107.0,21098.0,1.22511369]
[1673966330869,0.46589887,21108.0,21099.0,0.41792237]
[1673966331111,0.46589887,21108.0,21101.0,0.473898]
[1673966331350,0.46589887,21108.0,21102.0,1.05107169]
[1673966331613,0.64762482,21108.0,21101.0,0.473898]
[1673966331861,0.64762482,21108.0,21102.0,1.05519999]
[1673966332150,0.45689887,21108.0,21103.0,1.04255469]
[1673966332360,0.45689887,21108.0,21104.0,1.69870469]
[1673966332605,0.45689887,21108.0,21105.0,0.77720169]
[1673966332851,0.45689887,21108.0,21106.0,0.73911]
[1673966333094,0.45689887,21108.0,21105.0,0.50849]
[1673966333373,0.46589887,21108.0,21106.0,0.747585]
[1673966333623,0.45689887,21108.0,21107.0,0.265296]
[1673966334101,0.45689887,21108.0,21107.0,1.04249769]
[1673966334345,0.21349887,21108.0,21107.0,1.29738286]
[1673966334588,0.15,21113.0,21107.0,1.53426286]
[1673966334841,0.15,21117.0,21108.0,2.19840969]
[1673966335085,0.15,21117.0,21109.0,0.265263]
[1673966335337,0.14,21117.0,21111.0,0.473677]
[1673966335576,0.14,21117.0,21112.0,1.22302489]
[1673966335842,0.115,21117.0,21113.0,1.42446169]
[1673966336088,1.99979406,21120.0,21114.0,1.28769869]
[1673966336335,1.99979406,21120.0,21115.0,2.16310669]
[1673966336583,1.99949202,21120.0,21116.0,1.04804336]
[1673966336850,1.99949202,21120.0,21117.0,1.68943669]
[1673966337091,1.99949202,21120.0,21118.0,0.78570169]
[1673966337092,0.80529202,21120.0,21118.0,0.78570169]
[1673966337352,0.80529202,21120.0,21119.0,1.212127]
[1673966337599,0.80529202,21120.0,21116.0,0.41244167]
[1673966337600,0.66741365,21118.0,21113.0,0.47363]
[1673966337853,0.19072595,21117.0,21114.0,0.07876462]
[1673966338102,0.66741365,21118.0,21116.0,0.47720169]
[1673966338349,0.8579426,21118.0,21112.0,0.1721062]
[1673966338594,0.8579426,21118.0,21111.0,0.473665]
[1673966338595,0.19072595,21117.0,21111.0,0.473665]
[1673966338857,0.19072595,21117.0,21111.0,0.473684]
[1673966339099,0.19072595,21117.0,21109.0,0.764811]
[1673966339339,0.19072595,21116.0,21112.0,0.084]
[1673966339584,0.19072595,21116.0,21109.0,0.77371099]
[1673966339823,0.19072595,21115.0,21107.0,0.72014317]
[1673966340074,0.19072595,21114.0,21111.0,0.084]
[1673966340335,0.51271195,21113.0,21111.0,0.084]
[1673966340582,0.321986,21112.0,21104.0,0.15]
[1673966340843,0.76082862,21111.0,21098.0,0.473963]
[1673966341081,0.76082862,21111.0,21100.0,0.15]
[1673966341082,0.710616,21109.0,21100.0,0.15]
[1673966341365,0.62956857,21108.0,21100.0,0.31499999]
[1673966341583,0.795705,21110.0,21101.0,0.62720168]
[1673966341584,0.19072595,21107.0,21101.0,0.62720168]
[1673966341834,0.19072595,21107.0,21102.0,1.05936337]
[1673966342076,0.11861333,21110.0,21103.0,0.86413168]
[1673966342348,0.11861333,21110.0,21107.0,0.23689]
[1673966342598,0.15,21113.0,21108.0,2.04346368]
[1673966342839,0.1,21116.0,21109.0,0.85873705]
[1673966343078,0.66721665,21118.0,21109.0,0.85873705]
[1673966343079,0.66721665,21118.0,21111.0,1.421052]
[1673966343329,0.66721665,21118.0,21108.0,0.614614]
[1673966343330,0.19072595,21117.0,21112.0,0.14499999]
[1673966343578,0.321986,21116.0,21112.0,0.14499999]
[1673966343844,1.61428065,21118.0,21112.0,0.15949999]
[1673966343845,0.321986,21115.0,21112.0,0.15949999]
[1673966344090,0.321986,21114.0,21111.0,0.069]
[1673966344345,0.51271195,21113.0,21103.0,0.15]
[1673966344582,0.94818783,21112.0,21103.0,0.15]
[1673966344847,3.92059952,21111.0,21103.0,0.15]
[1673966345108,0.47720169,21107.0,21097.0,0.473997]
[1673966345344,0.70874678,21106.0,21097.0,0.473985]
[1673966345594,0.19072595,21105.0,21098.0,0.0473985]
[1673966345843,0.19072595,21105.0,21098.0,0.5213565]
[1673966346092,0.15,21110.0,21098.0,4.34877837]
[1673966346093,0.19072595,21104.0,21098.0,4.34877837]
[1673966346346,0.19072595,21103.0,21099.0,0.15]
[1673966346592,0.14191,21110.0,21099.0,0.15]
[1673966346593,0.615592,21112.0,21099.0,0.623935]
[1673966346851,0.01,21105.0,21100.0,0.68459518]
[1673966347101,0.01,21105.0,21101.0,1.097798]
[1673966347350,0.01,21105.0,21101.0,1.71999968]
[1673966347625,0.01,21105.0,21102.0,0.47720169]
[1673966347879,0.62552613,21111.0,21103.0,1.79815382]
[1673966347880,0.19072595,21111.0,21103.0,1.79815382]
[1673966348179,0.141,21116.0,21107.0,0.47720169]
[1673966348180,0.43480018,21116.0,21107.0,0.47720169]
[1673966348382,0.66721665,21118.0,21109.0,0.473715]
[1673966348625,0.66721665,21118.0,21110.0,0.28509559]
[1673966348881,0.66721665,21118.0,21111.0,0.14499999]
[1673966348882,0.15,21117.0,21111.0,0.14499999]
[1673966349138,0.15,21117.0,21107.0,0.14149]
[1673966349139,0.009,21116.0,21112.0,0.14499999]
[1673966349419,0.321986,21115.0,21112.0,0.14499999]
[1673966349631,1.24950683,21118.0,21110.0,0.002]
[1673966349888,0.8579426,21118.0,21111.0,0.29499999]
[1673966350137,0.8579426,21118.0,21112.0,1.51689676]
[1673966350138,0.66721665,21118.0,21112.0,1.51689676]
[1673966350402,0.66721665,21118.0,21113.0,0.14499999]
[1673966350648,0.66721665,21118.0,21114.0,1.09222699]
[1673966350924,0.088,21116.0,21109.0,0.14174]
[1673966351161,0.19072595,21115.0,21110.0,1.52662839]
[1673966351401,0.19072595,21115.0,21113.0,0.002]
[1673966351644,0.67321665,21118.0,21110.0,0.973692]
[1673966351645,0.66721665,21118.0,21110.0,0.973692]
[1673966351890,0.009,21116.0,21112.0,0.15]
[1673966352138,0.66721665,21118.0,21113.0,0.473623]
[1673966352385,0.088,21115.0,21114.0,1.10297618]
[1673966352636,0.088,21115.0,21114.0,1.43159519]
[1673966352893,0.088,21115.0,21114.0,1.58159519]
[1673966353386,0.088,21115.0,21114.0,0.923619]
[1673966353629,0.66721665,21118.0,21114.0,0.773619]
[1673966353880,0.008,21116.0,21115.0,0.47720169]
[1673966354115,0.008,21116.0,21115.0,0.95079769]
[1673966354367,0.66721665,21118.0,21115.0,0.95079769]
[1673966354619,0.00363087,21122.0,21116.0,0.76464335]
[1673966354870,0.00363087,21122.0,21118.0,0.23676]
[1673966355107,0.00363087,21122.0,21119.0,1.105504]
[1673966355603,0.00363087,21122.0,21120.0,0.3]
[1673966355862,0.00363087,21122.0,21121.0,0.955424]
[1673966356110,0.0039874,21130.0,21121.0,0.955424]
[1673966356111,0.15,21133.0,21125.0,0.00692018]
[1673966356351,0.34865535,21141.0,21125.0,0.00692018]
[1673966356352,0.15,21134.0,21127.0,0.47720169]
[1673966356594,0.472942,21145.0,21129.0,0.47328]
[1673966356595,0.44078134,21139.0,21129.0,0.47328]
[1673966356838,0.96815792,21146.0,21130.0,0.74078134]
[1673966356839,0.35264275,21146.0,21130.0,0.74078134]
[1673966357092,1.0769064,21146.0,21132.0,0.473203]
[1673966357347,0.19072595,21145.0,21133.0,0.63070168]
[1673966357594,0.15,21143.0,21136.0,0.94625]
[1673966358150,0.15,21143.0,21134.0,0.29946859]
[1673966358403,0.15,21143.0,21134.0,0.14499999]
[1673966358404,0.472987,21143.0,21134.0,0.14499999]
[1673966358648,0.472987,21143.0,21128.0,0.20572691]
[1673966358649,0.6,21141.0,21128.0,0.20572691]
[1673966359034,0.91376834,21143.0,21125.0,0.48028818]
[1673966359035,0.08910857,21133.0,21125.0,0.44699936]
[1673966359293,0.08910857,21133.0,21125.0,0.00692018]
[1673966359294,0.00359161,21131.0,21125.0,0.00692018]
[1673966359583,0.19072595,21130.0,21125.0,0.00692018]
[1673966359857,0.32557761,21131.0,21125.0,0.00692018]
[1673966359858,0.19072595,21129.0,21125.0,0.00692018]
[1673966360114,0.00359161,21131.0,21125.0,0.0549517]
[1673966360115,0.19072595,21128.0,21125.0,0.0549517]
[1673966360380,0.19072595,21127.0,21125.0,0.00692018]
[1673966360646,0.14321,21130.0,21125.0,0.00692018]
[1673966360647,0.51271195,21126.0,21125.0,0.00692018]
[1673966360914,0.51271195,21126.0,21122.0,0.00488453]
[1673966361173,0.51271195,21125.0,21122.0,0.00488453]
[1673966361441,0.34072595,21125.0,21122.0,0.00488453]
[1673966361962,0.73144891,21128.0,21122.0,0.00488453]
[1673966361963,0.480335,21127.0,21122.0,0.00488453]
[1673966362257,0.321986,21126.0,21122.0,0.02988453]
[1673966362531,0.328986,21125.0,21122.0,0.03688453]
[1673966362794,0.51271195,21124.0,21122.0,0.00488453]
[1673966363051,0.945403,21123.0,21122.0,0.00488453]
[1673966363794,0.471986,21123.0,21122.0,0.00488453]
[1673966364049,0.321986,21123.0,21122.0,0.00488453]
[1673966364309,0.321986,21123.0,21122.0,0.00688453]
[1673966364310,0.394986,21123.0,21122.0,0.00688453]
[1673966364579,0.321986,21123.0,21122.0,0.00488453]
[1673966364927,0.394986,21123.0,21122.0,0.00688453]
[1673966365135,1.06291364,21123.0,21122.0,0.00688453]
[1673966365405,1.06291364,21123.0,21122.0,0.00488453]
[1673966365406,1.04441224,21123.0,21122.0,0.00488453]
[1673966365663,0.87218769,21123.0,21122.0,0.00688453]
[1673966365921,0.94918769,21123.0,21112.0,0.02103699]
[1673966366198,0.946982,21120.0,21112.0,0.04603699]
[1673966366449,2.05085483,21122.0,21112.0,0.04603699]
[1673966366450,0.51271195,21119.0,21112.0,0.04603699]
[1673966366702,0.19072595,21119.0,21112.0,0.17037819]
[1673966366969,0.19072595,21119.0,21112.0,0.64403919]
[1673966367783,0.19072595,21118.0,21112.0,0.04603699]
[1673966368036,0.321986,21117.0,21112.0,0.04703699]
[1673966368311,0.15237,21120.0,21113.0,0.95084069]
[1673966368312,0.01,21120.0,21113.0,0.95084069]
[1673966368592,0.616579,21127.0,21113.0,0.95084069]
[1673966368593,0.14317,21129.0,21114.0,0.14705217]
[1673966368969,0.14321,21130.0,21118.0,0.947036]
[1673966369228,0.14321,21130.0,21119.0,1.09089265]
[1673966369229,0.33393595,21130.0,21119.0,1.09089265]
[1673966369495,0.62885961,21129.0,21120.0,0.025]
[1673966369750,0.62885961,21129.0,21121.0,0.025]
[1673966369751,0.15,21126.0,21121.0,0.025]
[1673966370013,0.321986,21125.0,21115.0,0.14209]
[1673966370295,0.94950968,21124.0,21116.0,0.498571]
[1673966370545,0.15,21126.0,21117.0,0.59941639]
[1673966370546,0.19072595,21123.0,21117.0,0.59941639]
[1673966370798,0.615397,21128.0,21117.0,0.59941639]
[1673966370799,0.14321,21130.0,21121.0,0.011]
[1673966371055,0.14201,21128.0,21122.0,0.025]
[1673966371330,0.14201,21128.0,21121.0,0.011]
[1673966371331,1.08184169,21127.0,21121.0,0.011]
[1673966371836,1.2,21124.0,21121.0,0.011]
[1673966372100,1.2,21124.0,21112.0,0.02103699]
[1673966372101,0.09683999,21113.0,21112.0,0.02103699]
[1673966372374,0.60955094,21113.0,21112.0,0.02103699]
[1673966372875,0.75955094,21113.0,21112.0,0.02103699]
[1673966373134,0.33298499,21113.0,21112.0,0.02103699]
[1673966373389,0.33298499,21113.0,21112.0,0.21893699]
[1673966373390,0.01099999,21113.0,21112.0,0.21893699]
[1673966373656,0.01099999,21113.0,21112.0,0.25828959]
[1673966373910,0.01099999,21113.0,21112.0,0.76049128]
[1673966374217,0.083,21113.0,21112.0,1.21015528]
[1673966374434,0.02152044,21120.0,21113.0,0.083]
[1673966374697,0.02152044,21120.0,21116.0,0.15]
[1673966374950,0.02152044,21120.0,21117.0,1.48870769]
[1673966375218,0.43625638,21130.0,21119.0,0.47720169]
[1673966375521,0.00359161,21131.0,21122.0,0.473433]
[1673966375791,0.00359161,21131.0,21121.0,0.473455]
[1673966375792,0.15359161,21131.0,21123.0,0.025]
[1673966376054,0.15359161,21131.0,21124.0,0.025]
[1673966376055,1.40806317,21130.0,21124.0,0.025]
[1673966376318,0.321985,21129.0,21125.0,0.025]
[1673966376575,0.321985,21129.0,21118.0,0.43625638]
[1673966376576,0.321985,21128.0,21118.0,0.43625638]
[1673966376845,0.101,21120.0,21118.0,0.473511]
[1673966377108,0.19072595,21119.0,21115.0,0.473575]
[1673966377365,0.19072595,21118.0,21116.0,0.95075569]
[1673966377634,0.19072595,21118.0,21116.0,0.473554]
[1673966377913,0.1,21120.0,21117.0,0.030911]
[1673966378397,0.1,21120.0,21112.0,0.02103699]
[1673966378398,0.19072595,21119.0,21112.0,0.02103699]
[1673966378402,0.66523295,21119.0,21115.0,0.086]
[1673966378660,0.66523295,21119.0,21112.0,0.02103699]
[1673966378661,0.15,21117.0,21112.0,0.02103699]
[1673966378916,0.51271095,21116.0,21112.0,0.02103699]
[1673966379182,0.19072595,21116.0,21112.0,0.02103699]
[1673966379515,0.321985,21115.0,21112.0,0.02103699]
[1673966379706,0.321985,21114.0,21112.0,0.02103699]
[1673966379973,0.321985,21113.0,21112.0,0.02103699]
[1673966380496,0.51271095,21113.0,21112.0,0.02103699]
[1673966380764,0.51271095,21113.0,21112.0,0.07303699]
[1673966381018,0.321985,21113.0,21112.0,0.07303699]
[1673966381542,0.321985,21113.0,21110.0,0.5]
[1673966381543,0.0596417,21111.0,21110.0,0.5]
[1673966381797,0.3816387,21111.0,21110.0,0.5]
[1673966382320,0.3816387,21111.0,21110.0,0.18461235]
[1673966382574,0.0596417,21111.0,21110.0,0.18461235]
[1673966382846,0.0596417,21111.0,21110.0,0.58744418]
[1673966383122,0.0596417,21111.0,21110.0,1.06965318]
[1673966383406,0.43638624,21118.0,21110.0,1.06115318]
[1673966383652,0.19072595,21118.0,21111.0,0.025]
[1673966383909,0.19072595,21118.0,21112.0,0.025]
[1673966384180,0.19072595,21118.0,21113.0,0.025]
[1673966384438,0.51272295,21117.0,21110.0,0.18461235]
[1673966384921,0.321997,21116.0,21111.0,0.003]
[1673966384924,0.43480426,21117.0,21111.0,0.003]
[1673966385170,0.62553021,21118.0,21110.0,0.18511235]
[1673966385430,0.62553021,21118.0,21111.0,0.025]
[1673966385431,0.94752721,21117.0,21111.0,0.025]
[1673966385682,0.94752721,21117.0,21110.0,0.18511235]
[1673966385683,1.09752721,21116.0,21110.0,0.18511235]
[1673966385945,1.89474521,21115.0,21110.0,0.21411235]
[1673966386208,0.15,21116.0,21111.0,0.04641124]
[1673966386209,0.321997,21114.0,21111.0,0.04641124]
[1673966386463,0.43480426,21119.0,21111.0,0.04641124]
[1673966386720,0.19072595,21119.0,21112.0,0.346997]
[1673966386975,0.1,21120.0,21113.0,0.10920782]
[1673966387273,0.062,21118.0,21114.0,0.025]
[1673966387494,0.062,21118.0,21115.0,0.346997]
[1673966387751,0.25272595,21118.0,21112.0,0.473647]
[1673966388007,0.1,21120.0,21113.0,0.06499882]
[1673966388008,0.19072595,21117.0,21113.0,0.06499882]
[1673966388259,0.74935426,21120.0,21113.0,0.09299882]
[1673966388506,0.74935426,21120.0,21115.0,0.15]
[1673966388507,0.29072595,21120.0,21115.0,0.15]
[1673966388814,0.29072595,21120.0,21116.0,0.321997]
[1673966388815,0.062,21118.0,21116.0,0.321997]
[1673966389071,0.062,21118.0,21117.0,0.321997]
[1673966389345,0.062,21118.0,21117.0,0.51163087]
[1673966389615,0.43480426,21125.0,21117.0,0.51163087]
[1673966389616,0.43209076,21125.0,21117.0,0.53663087]
[1673966390101,0.58665076,21128.0,21120.0,0.473478]
[1673966390106,0.0033647,21124.0,21120.0,0.473478]
[1673966390370,0.0033647,21124.0,21121.0,0.441695]
[1673966390638,0.0033647,21124.0,21122.0,0.94688]
[1673966390639,6.47e-05,21124.0,21122.0,0.94688]
[1673966390902,6.47e-05,21124.0,21123.0,0.321997]
[1673966391196,6.47e-05,21124.0,21123.0,0.7858545]
[1673966391423,6.47e-05,21124.0,21123.0,0.7693545]
[1673966391944,4.7e-06,21124.0,21123.0,0.9193545]
[1673966392208,4.7e-06,21124.0,21123.0,0.9723545]
[1673966392474,0.19073065,21124.0,21123.0,0.471997]
[1673966392734,0.19073065,21124.0,21123.0,0.413997]
[1673966392735,4.7e-06,21124.0,21123.0,0.413997]
[1673966393006,4.7e-06,21124.0,21123.0,0.5595545]
[1673966393273,4.7e-06,21124.0,21123.0,1.33675619]
[1673966393534,4.7e-06,21124.0,21123.0,0.413997]
[1673966393848,4.7e-06,21124.0,21123.0,0.79919869]
[1673966394111,4.7e-06,21124.0,21123.0,0.80769869]
[1673966394643,0.00359161,21131.0,21124.0,5.53e-05]
[1673966394908,0.00359161,21131.0,21125.0,1.92229069]
[1673966395398,0.00359161,21131.0,21126.0,0.496997]
[1673966395399,0.19072595,21131.0,21126.0,0.496997]
[1673966395402,0.09278662,21133.0,21126.0,0.346997]
[1673966395664,0.09278662,21133.0,21125.0,2.05911069]
[1673966395665,0.44533257,21133.0,21127.0,0.025]
[1673966395927,0.09278662,21133.0,21127.0,0.49831]
[1673966396174,0.09278662,21133.0,21128.0,0.321997]
[1673966396175,0.05718662,21133.0,21128.0,0.321997]
[1673966396436,0.05718662,21133.0,21129.0,0.5803017]
[1673966396692,0.05718662,21133.0,21130.0,0.346997]
[1673966396958,0.05718662,21133.0,21131.0,0.473238]